Workbook

Sheet 灌云县
A1: 灌云县2026年村级公益事业建设一事一议财政奖补拟立项项目公示
A2: 镇街/村 | B2: 乡镇数 | C2: 行政村数 | D2: 农业人口 | E2: 奖补乡镇数 | F2: 奖补村数 | G2: 奖补村农业人口 | H2: 奖补项目拟投入建设资金、筹劳工日情况 | Q2: 公里数 | R2: 路灯（盏）
H3: 合计 | I3: 一事一议筹资筹劳资金 | K3: 财政奖补资金 | M3: 其他建设资金
I4: 小计 | J4: 一事一议筹资 | K4: 小计 | L4: 省级资金 | M4: 小计 | N4: 村集体资金 | O4: 社会捐助资金 | P4: 其他
A6: 单位 | C6: 个 | D6: 万人 | F6: 个 | G6: 人 | H6: 万元 | I6: 万元 | J6: 万元 | K6: 万元 | L6: 万元 | M6: 万元 | N6: 万元 | O6: 万元 | P6: 万元
A7: 总计 | B7: =SUM(B8,B15,B24,B31,B39,B45,B51,B59,B61,B67,B74) -> 11 | C7: =SUM(C8,C15,C24,C31,C39,C45,C51,C59,C61,C67,C74) -> 62 | D7: 16.75 | E7: 11 | F7: 62 | G7: 167516 | H7: =I7+K7+M7 -> 1718.59 | I7: =SUM(I8,I15,I24,I31,I39,I45,I51,I59,I61,I67,I74) -> 192.21 | J7: =SUM(J8,J15,J24,J31,J39,J45,J51,J59,J61,J67,J74) -> 192.21 | K7: =SUM(K8,K15,K24,K31,K39,K45,K51,K59,K61,K67,K74,K81) -> 1433.00 | L7: =SUM(L8,L15,L24,L31,L39,L45,L51,L59,L61,L67,L74,L81) -> 1433.00 | M7: =SUM(M8,M15,M24,M31,M39,M45,M51,M59,M61,M67,M74) -> 93.38 | N7: 63.58 | O7: 2.00 | P7: 27.81 | Q7: 55.318 | R7: 2203
A8: 东王集镇（合计） | B8: 1 | C8: 6 | D8: =SUM(D9:D14) -> 1.78 | E8: 1 | F8: 6 | G8: =SUM(G9:G14) -> 17785 | H8: 182.96 | I8: 30.96 | J8: 30.96 | K8: 152.00 | L8: 152.00 | Q8: =SUM(Q9:Q14) -> 4.90 | R8: 500
A9: 东湾村 | C9: 1 | D9: =2950/10000 -> 0.30 | G9: 2950 | H9: 32.90 | I9: 5.90 | J9: 5.90 | K9: 27.00 | L9: 27.00 | Q9: 1.20
A10: 兴春村 | C10: 1 | D10: =2925/10000 -> 0.29 | G10: 2925 | H10: 35.85 | I10: 5.85 | J10: 5.85 | K10: 30.00 | L10: 30.00 | Q10: 1.30
A11: 焦荡村 | C11: 1 | D11: =2825/10000 -> 0.28 | G11: 2825 | H11: 32.65 | I11: 5.65 | J11: 5.65 | K11: 27.00 | L11: 27.00 | Q11: 1.20
A12: 条河村 | C12: 1 | D12: =2680/10000 -> 0.27 | G12: 2680 | H12: 32.36 | I12: 5.36 | J12: 5.36 | K12: 27.00 | L12: 27.00 | Q12: 1.20
A13: 小垛村 | C13: 1 | D13: =3480/10000 -> 0.35 | G13: 3480 | H13: =I13+K13 -> 24.60 | I13: 4.10 | J13: 4.10 | K13: =J13*5 -> 20.50 | L13: 20.50 | R13: 250
A14: 法科村 | C14: 1 | D14: =2925/10000 -> 0.29 | G14: 2925 | H14: =I14+K14 -> 24.60 | I14: 4.10 | J14: 4.10 | K14: 20.50 | L14: 20.50 | R14: 250
A15: 龙苴镇（合计） | B15: 1 | C15: 8 | D15: =SUM(D16:D23) -> 2.35 | E15: 1 | F15: 8 | G15: =SUM(G16:G23) -> 23418 | H15: 233.20 | I15: 36.85 | J15: 36.85 | K15: 194.35 | L15: 194.35 | M15: 2.00 | O15: =SUM(O16:O23) -> 2.00 | Q15: 8.005 | R15: 219
A16: 竹墩村 | C16: 1 | D16: 0.32 | G16: 3244 | H16: =I16+K16+M16 -> 21.79 | I16: 3.63 | J16: 3.63 | K16: 18.16 | L16: 18.16 | Q16: 0.807
A17: 大洼村 | C17: 1 | D17: 0.24 | G17: 2356 | H17: =I17+K17+M17 -> 38.74 | I17: 4.45 | J17: 4.45 | K17: 32.29 | L17: 32.29 | M17: 2.00 | O17: 2.00 | Q17: 1.435
A18: 黄荡村 | C18: 1 | D18: 0.31 | G18: 3082 | H18: 30.73 | I18: 5.12 | J18: 5.12 | K18: 25.61 | L18: 25.61 | Q18: 1.138
A19: 大贺村 | C19: 1 | D19: 0.38 | G19: 3750 | H19: 35.10 | I19: 5.85 | J19: 5.85 | K19: 29.25 | L19: 29.25 | Q19: 1.300
A20: 后埠村 | C20: 1 | D20: 0.26 | G20: 2637 | H20: 27.54 | I20: 4.59 | J20: 4.59 | K20: 22.95 | L20: 22.95 | Q20: 1.200
A21: 孙港村 | C21: 1 | D21: 0.34 | G21: 3359 | H21: 33.35 | I21: 5.55 | J21: 5.55 | K21: 27.80 | L21: 27.80 | Q21: 1.235
A22: 嵇岭村 | C22: 1 | D22: 0.29 | G22: 2893 | H22: 21.95 | I22: 3.66 | J22: 3.66 | K22: 18.29 | L22: 18.29 | R22: 219
A23: 范庄村 | C23: 1 | D23: 0.21 | G23: 2097 | H23: 24.00 | I23: 4.00 | J23: 4.00 | K23: 20.00 | L23: 20.00 | Q23: 0.890
A24: 四队镇（合计） | B24: 1 | C24: 6 | D24: =SUM(D25:D30) -> 1.20 | E24: 1 | F24: 6 | G24: 11978 | H24: 119.85 | K24: =SUM(K25:K30) -> 99.88 | L24: =SUM(L25:L30) -> 99.88 | M24: =SUM(M25:M30) -> 19.98 | N24: 19.98 | Q24: 2.975 | R24: 396
A25: 界北村 | C25: 1 | D25: 0.23 | G25: 2327 | H25: 24.30 | K25: 20.25 | L25: =M25*5 -> 20.25 | M25: 4.05 | N25: 4.05 | Q25: 0.90
A26: 街西社区 | C26: 1 | D26: 0.18 | G26: 1807 | H26: 32.13 | K26: 26.78 | L26: 26.78 | M26: 5.36 | N26: 5.36 | Q26: 1.19
A27: 兴三村 | C27: 1 | D27: 0.21 | G27: 2100 | H27: 8.64 | K27: 7.20 | L27: 7.20 | M27: 1.44 | N27: 1.44 | Q27: 0.32
A28: 兴四村 | C28: 1 | D28: 0.24 | G28: 2448 | H28: 15.24 | K28: 12.70 | L28: 12.70 | M28: 2.54 | N28: 2.54 | Q28: 0.565
A29: 正兴村 | C29: 1 | D29: 0.21 | G29: 2050 | H29: 28.56 | K29: 23.80 | L29: 23.80 | M29: 4.76 | N29: 4.76 | R29: 286
A30: 三队村 | C30: 1 | D30: 0.12 | G30: 1246 | H30: =K30+N30 -> 10.98 | K30: 9.15 | L30: 9.15 | M30: 1.83 | N30: 1.83 | R30: 110
A31: 同兴镇（合计） | B31: 1 | C31: 7 | D31: =SUM(D32:D38) -> 1.54 | E31: 1 | F31: 6 | G31: =SUM(G32:G38) -> 15420 | H31: =SUM(H32:H38) -> 166.84 | K31: =SUM(K32:K38) -> 139.03 | L31: =SUM(L32:L38) -> 139.03 | M31: =SUM(M32:M38) -> 27.81 | P31: =SUM(P32:P38) -> 27.81 | Q31: =SUM(Q32:Q38) -> 6.26
A32: 李庄村 | C32: 1 | D32: 0.26 | G32: 2560 | H32: 31.59 | K32: 26.33 | L32: =M32*5 -> 26.33 | M32: 5.27 | P32: 5.27 | Q32: 1.20
A33: 塘圩村 | C33: 1 | D33: 0.21 | G33: 2100 | H33: 24.42 | K33: 20.35 | L33: =M33*5 -> 20.35 | M33: 4.07 | P33: 4.07 | Q33: 0.91
A34: 五里村 | C34: 1 | D34: 0.24 | G34: 2360 | H34: 15.57 | K34: 12.98 | L34: 12.98 | M34: 2.60 | P34: 2.60 | Q34: 0.59
A35: 毛场村 | C35: 1 | D35: 0.20 | G35: 2010 | H35: 18.39 | K35: 15.33 | L35: 15.33 | M35: 3.07 | P35: 3.07 | Q35: 0.70
A36: 玉山村 | C36: 1 | D36: 0.27 | G36: 2740 | H36: 30.77 | K36: 25.65 | L36: 25.65 | M36: 5.13 | P36: 5.13 | Q36: 1.15
A37: 伊芦村 | C37: 1 | D37: 0.20 | G37: 2000 | H37: 34.86 | K37: 29.05 | L37: 29.05 | M37: 5.81 | P37: =H37/6 -> 5.81 | Q37: 1.29
A38: 金跳村 | C38: 1 | D38: 0.17 | G38: 1650 | H38: 11.23 | K38: 9.36 | L38: 9.36 | M38: 1.87 | P38: 1.87 | Q38: 0.44
A39: 图河镇（合计） | B39: 1 | C39: 5 | D39: =SUM(D40:D44) -> 1.50 | E39: 1 | F39: 5 | G39: =SUM(G40:G44) -> 15001 | H39: 143.21 | I39: 23.83 | J39: 23.83 | K39: 119.38 | L39: 119.38 | Q39: =SUM(Q40:Q44) -> 5.426
A40: 许大沟村 | C40: 1 | D40: 0.18 | G40: 1820 | H40: =I40+L40 -> 23.00 | I40: 3.80 | J40: 3.80 | K40: 19.20 | L40: 19.20 | Q40: 0.872
A41: 九段村 | C41: 1 | D41: 0.31 | G41: 3120 | H41: 26.90 | I41: 4.48 | J41: 4.48 | K41: 22.42 | L41: 22.42 | Q41: 1.019
A42: 大兴沟村 | C42: 1 | D42: 0.34 | G42: 3376 | H42: 39.60 | I42: 6.60 | J42: 6.60 | K42: 33.00 | L42: 33.00 | Q42: 1.500
A43: 腰庄村 | C43: 1 | D43: 0.34 | G43: 3434 | H43: 25.36 | I43: 4.23 | J43: 4.23 | K43: 21.13 | L43: 21.13 | Q43: 0.961
A44: 马屯村 | C44: 1 | D44: 0.33 | G44: 3251 | H44: 28.35 | I44: 4.72 | J44: 4.72 | K44: 23.63 | L44: 23.63 | Q44: 1.074
A45: 圩丰镇（合计） | B45: 1 | C45: =C46+C47+C48+C49+C50 -> 5 | D45: =SUM(D46:D50) -> 1.21 | E45: 1 | F45: 5 | G45: =SUM(G46:G50) -> 12100 | H45: 123.30 | I45: 15.11 | J45: 15.11 | K45: 102.80 | L45: 102.80 | M45: 7.38 | N45: 7.38 | Q45: =SUM(Q46:Q50) -> 3.12 | R45: =SUM(R46:R50) -> 558
A46: 大兴村 | C46: 1 | D46: 0.30 | G46: =D46*10000 -> 3000 | H46: 27.00 | I46: 4.50 | J46: 4.50 | K46: 22.50 | L46: 22.50 | Q46: 1.00
A47: 直亭村 | C47: 1 | D47: 0.20 | G47: =D47*10000 -> 2000 | H47: 35.64 | I47: 4.00 | J47: 4.00 | K47: 29.70 | L47: 29.70 | M47: 1.94 | N47: 1.94 | Q47: 1.32
A48: 尹场村 | C48: 1 | D48: 0.26 | G48: 2600 | H48: 18.06 | I48: 3.01 | J48: 3.01 | K48: 15.10 | L48: 15.10 | M48: 1.94 | N48: 1.94 | R48: 258
A49: 东圩村 | C49: 1 | D49: 0.20 | G49: 2000 | H49: 21.00 | K49: 17.50 | L49: 17.50 | M49: 3.5 | N49: 3.5 | R49: 300
A50: 太丰村 | C50: 1 | D50: 0.25 | G50: =D50*10000 -> 2500 | H50: 21.60 | I50: 3.60 | J50: 3.60 | K50: 18.00 | L50: 18.00 | Q50: 0.80
A51: 下车镇（合计） | B51: 1 | C51: 7 | D51: =D52+D53+D54+D55+D56+D57+D58 -> 1.69 | E51: 1 | F51: 7 | G51: 16865 | H51: 184.63 | K51: =K52+K53+K54+K55+K56+K57+K58 -> 153.86 | L51: =L52+L53+L54+L55+L56+L57+L58 -> 153.86 | M51: =M52+M53+M54+M55+M56+M57+M58 -> 30.77 | N51: =N52+N53+N54+N55+N56+N57+N58 -> 30.77 | Q51: =SUM(Q52:Q58) -> 6.838
A52: 前门村 | C52: 1 | D52: 0.23 | G52: 2256 | H52: =I52+L52+M52 -> 30.24 | K52: 25.20 | L52: 25.20 | M52: 5.04 | N52: 5.04 | Q52: 1.12
A53: 林庄村 | C53: 1 | D53: 0.29 | G53: 2872 | H53: =I53+L53+M53 -> 54.95 | K53: 45.79 | L53: 45.79 | M53: 9.16 | N53: 9.16 | Q53: 2.035
A54: 徐圩村 | C54: 1 | D54: 0.21 | G54: 2144 | H54: 19.98 | K54: 16.65 | L54: 16.65 | M54: 3.33 | N54: 3.33 | Q54: 0.740
A55: 张庄村 | C55: 1 | D55: 0.20 | G55: 1980 | H55: 12.37 | K55: 10.31 | L55: 10.31 | M55: 2.06 | N55: 2.06 | Q55: 0.458
A56: 刘圩村 | C56: 1 | D56: 0.19 | G56: 1860 | H56: 13.85 | K56: 11.54 | L56: 11.54 | M56: 2.31 | N56: 2.31 | Q56: 0.513
A57: 陈庄村 | C57: 1 | D57: 0.34 | G57: 3368 | H57: 19.82 | K57: 16.52 | L57: 16.52 | M57: 3.30 | N57: 3.30 | Q57: 0.734
A58: 高河村 | C58: 1 | D58: 0.24 | G58: 2385 | H58: 33.43 | K58: 27.86 | L58: 27.86 | M58: 5.57 | N58: 5.57 | Q58: 1.238
A59: 伊山镇（合计） | B59: 1 | C59: 1 | D59: =SUM(D60:D60) -> 0.25 | E59: 1 | F59: 2 | G59: =SUM(G60:G60) -> 2544 | H59: 23.80 | I59: 4.76 | J59: 4.76 | K59: 19.04 | L59: 19.04 | Q59: =SUM(Q60:Q60) -> 0 | R59: =SUM(R60:R60) -> 280
A60: 张湾村 | C60: 1 | D60: 0.25 | G60: 2544 | H60: 23.80 | I60: 4.76 | J60: 4.76 | K60: 19.04 | L60: 19.04 | R60: 280
A61: 小伊镇（合计） | B61: 1 | C61: 5 | D61: =SUM(D62:D66) -> 1.71 | E61: 1 | F61: 5 | G61: =SUM(G62:G66) -> 17145 | H61: 128.82 | I61: 21.85 | J61: 21.85 | K61: 106.97 | L61: 106.97 | Q61: =SUM(Q62:Q66) -> 4.725
A62: 伊北村 | C62: 1 | D62: 0.36 | G62: 3588 | H62: 31.59 | I62: 5.85 | J62: 5.85 | K62: 25.74 | L62: 25.74 | Q62: 1.170
A63: 大孙村 | C63: 1 | D63: 0.26 | G63: 2608 | H63: 20.28 | I63: 3.38 | J63: 3.38 | K63: 16.90 | L63: 16.90 | Q63: 0.750
A64: 祝庄村 | C64: 1 | D64: 0.36 | G64: 3600 | H64: 27.00 | I64: 4.50 | J64: 4.50 | K64: 22.50 | L64: 22.50 | Q64: 1.000
A65: 伊南村 | C65: 1 | D65: 0.30 | G65: 3049 | H65: 27.00 | I65: 4.50 | J65: 4.50 | K65: 22.50 | L65: 22.50 | Q65: 1.000
A66: 唐庄村 | C66: 1 | D66: 0.43 | G66: 4300 | H66: 22.95 | I66: 3.62 | J66: 3.62 | K66: 19.33 | L66: 19.33 | Q66: 0.805
A67: 杨集镇（合计） | B67: 1 | C67: 6 | D67: =SUM(D68:D73) -> 1.53 | E67: 1 | F67: 6 | G67: =SUM(G68:G73) -> 15304 | H67: 185.15 | I67: 26.1 | J67: 26.1 | K67: 153.6 | L67: 153.6 | M67: =SUM(M68:M73) -> 5.45 | N67: 5.45 | Q67: 5.798 | R67: 250
A68: 镇东村 | C68: 1 | D68: =2172/10000 -> 0.22 | G68: 2172 | H68: =I68+L68+M68 -> 31.05 | I68: 4.00 | J68: 4.00 | K68: 25.80 | L68: 25.80 | M68: 1.25 | N68: 1.25 | Q68: 1.150
A69: 方庄村 | C69: 1 | D69: =2638/10000 -> 0.26 | G69: 2638 | H69: 30.00 | I69: 5.00 | J69: 5.00 | K69: 25.00 | L69: 25.00 | Q69: 1.100
A70: 城西村 | C70: 1 | D70: =4058/10000 -> 0.41 | G70: 4058 | H70: 40.50 | I70: 7.00 | J70: 7.00 | K70: 33.50 | L70: 33.50 | Q70: 1.500
A71: 通榆村 | C71: 1 | D71: =3100/10000 -> 0.31 | G71: 3100 | H71: 29.30 | I71: 5.00 | J71: 5.00 | K71: 24.30 | L71: 24.30 | Q71: 1.082
A72: 三图村 | C72: 1 | D72: =2216/10000 -> 0.22 | G72: 2216 | H72: 30.20 | I72: 4.00 | J72: 4.00 | K72: 25.00 | L72: 25.00 | M72: 1.2 | N72: 1.2 | Q72: 0.966
A73: 新安村 | C73: 1 | D73: =1120/10000 -> 0.11 | G73: 1120 | H73: 24.10 | I73: 1.10 | J73: 1.10 | K73: 20.00 | L73: 20.00 | M73: 3 | N73: 3 | R73: 250
A74: 南岗镇（合计） | B74: 1 | C74: 6 | D74: =SUM(D75:D79) -> 1.99 | E74: 1 | F74: 6 | G74: =SUM(G75:G79) -> 19956 | H74: =H75+H76+H77+H78+H79+H80 -> 196.85 | I74: =I75+I76+I77+I78+I79+I80 -> 32.75 | J74: =J75+J76+J77+J78+J79+J80 -> 32.75 | K74: =K75+K76++K77+K78+K79+K80 -> 164.1 | L74: =L75+L76+L77+L78+L79+L80 -> 164.1 | Q74: =Q75+Q76+Q77+Q78+Q79+Q80 -> 7.27
A75: 陡沟村 | C75: 1 | D75: 0.63 | G75: 6260 | H75: =I75+L75 -> 25.37 | I75: 4.17 | J75: 4.17 | K75: 21.20 | L75: 21.20 | Q75: 0.930
A76: 隆昌村 | C76: 1 | D76: 0.18 | G76: 1849 | H76: =I76+L76 -> 38.88 | I76: 6.48 | J76: 6.48 | K76: 32.40 | L76: 32.40 | Q76: 1.440
A77: 石涧村 | C77: 1 | D77: 0.35 | G77: 3517 | H77: =I77+L77 -> 35.50 | I77: 5.90 | J77: 5.90 | K77: 29.60 | L77: 29.60 | Q77: 1.300
A78: 高李庄村 | C78: 1 | D78: 0.47 | G78: 4710 | H78: =I78+L78 -> 41.30 | I78: 6.90 | J78: 6.90 | K78: 34.40 | L78: 34.40 | Q78: 1.530
A79: 东园村 | C79: 1 | D79: 0.36 | G79: 3620 | H79: =I79+L79 -> 28.80 | I79: 4.80 | J79: 4.80 | K79: 24.00 | L79: 24.00 | Q79: 1.070
A80: 贺庄村 | C80: 1 | D80: 0.27 | G80: 2716 | H80: =I80+K80 -> 27.00 | I80: 4.50 | J80: 4.50 | K80: 22.50 | L80: 22.50 | Q80: 1.000
A81: 检测、监理、审计等费用 | H81: 28.00 | K81: 28.00 | L81: 28.00
